[Event "Queens Festival Europe 2022"]
[Site "Tornelo"]
[Date "2022.06.19"]
[Round "10.8"]
[White "Smith, Olivia"]
[Black "Machlik, Edit"]
[Result "1/2-1/2"]
[ECO "B10"]
[WhiteElo "2039"]
[BlackElo "2084"]
[Annotator "NA RC"]
[PlyCount "125"]
[EventDate "2022.06.19"]
[EventType "swiss"]
[EventCountry "NET"]
[SourceTitle "playchess.com"]
[Source "ChessBase"]
[SourceQuality "1"]
[TimeControl "180+2"]

1. e4 {[%emt 0:00:02]} c6 {[%emt 0:00:05]} 2. d3 {[%emt 0:00:13]} d5 {[%emt 0:00:07]} 3. Nd2 {[%emt 0:00:05]} e5 {[%emt 0:00:01]} 4. Ngf3 {[%emt 0:00:01]} Bd6 {[%emt 0:00:03]} 5. g3 {[%emt 0:00:02]} Nf6 {[%emt 0:00:02]} 6. Bg2 {[%emt 0:00:01]} O-O {[%emt 0:00:01]} 7. O-O {[%emt 0:00:01]} dxe4 {[%emt 0:00:02]} 8. dxe4 {[%emt 0:00:02]} Qe7 {[%emt 0:00:08]} 9. Re1 {[%emt 0:00:17]} Rd8 {[%emt 0:00:17]} 10. Qe2 {[%emt 0:00:03]} Nbd7 {[%emt 0:00:04]} 11. Nc4 {[%emt 0:00:05]} Bc7 {[%emt 0:00:02]} 12. Bg5 {[%emt 0:00:05]} h6 {[%emt 0:00:04]} 13. Bxf6 {[%emt 0:00:14]} Nxf6 {[%emt 0:00:08]} 14. Rad1 {[%emt 0:00:03]} Bg4 {[%emt 0:00:05]} 15. h3 {[%emt 0:00:03]} Bxf3 {[%emt 0:00:45]} 16. Bxf3 {[%emt 0:00:19]} Qc5 {[%emt 0:00:05]} 17. Ne3 {[%emt 0:00:09]} Rxd1 {[%emt 0:00:26]} 18. Rxd1 {[%emt 0:00:02]} Rd8 {[%emt 0:00:01]} 19. Rxd8+ {[%emt 0:00:03]} Bxd8 {[%emt 0:00:02]} 20. Nf5 {[%emt 0:00:02]} Bb6 {[%emt 0:00:04]} 21. Ne3 {[%emt 0:00:13]} Qd4 {[%emt 0:00:05]} 22. c3 {[%emt 0:00:06]} Qd7 {[%emt 0:00:10]} 23. Nf5 {[%emt 0:00:06]} a5 {[%emt 0:00:12]} 24. Bg2 {[%emt 0:00:06]} Qe6 {[%emt 0:00:05]} 25. a3 {[%emt 0:00:05]} Qa2 {[%emt 0:00:06]} 26. Kh2 {[%emt 0:00:03]} Qb1 {[%emt 0:00:02]} 27. Ne7+ {[%emt 0:00:45]} Kf8 {[%emt 0:00:17]} 28. Nf5 {[%emt 0:00:05]} Qc1 {[%emt 0:00:04]} 29. Qd3 {[%emt 0:00:19]} Kg8 {[%emt 0:00:11]} 30. Qe2 {[%emt 0:00:04]} Bc5 {[%emt 0:00:04]} 31. b4 {[%emt 0:00:02]} axb4 {[%emt 0:00:04]} 32. cxb4 {[%emt 0:00:02]} Bd4 {[%emt 0:00:02]} 33. Qf3 {[%emt 0:00:01]} Qd2 {[%emt 0:00:03]} 34. Nxh6+ {[%emt 0:00:03]} gxh6 {[%emt 0:00:05]} 35. Qxf6 {[%emt 0:00:02]} Qxf2 {[%emt 0:00:02]} 36. Qxf2 {[%emt 0:00:01]} Bxf2 {[%emt 0:00:01]} 37. Bf3 {[%emt 0:00:02]} Be1 {[%emt 0:00:03]} 38. Kg2 {[%emt 0:00:01]} Bc3 {[%emt 0:00:02]} 39. Be2 {[%emt 0:00:06]} Kg7 {[%emt 0:00:02]} 40. Kf3 {[%emt 0:00:01]} Kf6 {[%emt 0:00:01]} 41. Ke3 {[%emt 0:00:03]} Kg5 {[%emt 0:00:02]} 42. Kd3 {[%emt 0:00:02]} Bd4 {[%emt 0:00:01]} 43. a4 {[%emt 0:00:06]} Bf2 {[%emt 0:00:02]} 44. g4 {[%emt 0:00:01]} Kh4 {[%emt 0:00:01]} 45. Bf1 {[%emt 0:00:01]} Kg3 {[%emt 0:00:02]} 46. Ke2 {[%emt 0:00:02]} Bd4 {[%emt 0:00:02]} 47. b5 {[%emt 0:00:02]} cxb5 {[%emt 0:00:02]} 48. axb5 {[%emt 0:00:02]} Kf4 {[%emt 0:00:03]} 49. Bg2 {[%emt 0:00:03]} b6 {[%emt 0:00:04]} 50. Kd3 {[%emt 0:00:06]} Kg3 {[%emt 0:00:02]} 51. Bf1 {[%emt 0:00:01]} Kf2 {[%emt 0:00:01]} 52. Be2 {[%emt 0:00:02]} Kg2 {[%emt 0:00:04]} 53. h4 {[%emt 0:00:01]} Kg3 {[%emt 0:00:07]} 54. h5 {[%emt 0:00:01]} Kh4 {[%emt 0:00:02]} 55. Bd1 {[%emt 0:00:02]} Kg5 {[%emt 0:00:01]} 56. Kc4 {[%emt 0:00:01]} Kf6 {[%emt 0:00:02]} 57. Kd5 {[%emt 0:00:03]} Kg5 {[%emt 0:00:01]} 58. Be2 {[%emt 0:00:02]} f6 {[%emt 0:00:01]} 59. Ke6 {[%emt 0:00:03]} Be3 {[%emt 0:00:02]} 60. Bd1 {[%emt 0:00:02]} Bd4 {[%emt 0:00:01]} 61. Be2 {[%emt 0:00:01]} Be3 {[%emt 0:00:02]} 62. Bd1 {[%emt 0:00:02]} Bd4 {[%emt 0:00:01]} 63. Be2 {[%emt 0:00:01]} 1/2-1/2

[Event "Queens Festival Europe 2022"]
[Site "Tornelo"]
[Date "2022.06.19"]
[Round "10.8"]
[White "Roy, Ali"]
[Black "Rahimli, Izzat"]
[Result "0-1"]
[ECO "A07"]
[WhiteElo "1893"]
[BlackElo "1817"]
[Annotator "NA RC"]
[PlyCount "72"]
[EventDate "2022.06.19"]
[EventType "swiss"]
[EventCountry "NET"]
[SourceTitle "playchess.com"]
[Source "ChessBase"]
[SourceQuality "1"]
[TimeControl "180+2"]

1. Nf3 {[%emt 0:00:02]} d5 {[%emt 0:00:07]} 2. g3 {[%emt 0:00:03]} Nf6 {[%emt 0:00:01]} 3. Bg2 {[%emt 0:00:01]} e6 {[%emt 0:00:01]} 4. O-O {[%emt 0:00:02]} Bd6 {[%emt 0:00:02]} 5. d3 {[%emt 0:00:02]} O-O {[%emt 0:00:02]} 6. Nbd2 {[%emt 0:00:02]} h6 {[%emt 0:00:01]} 7. e4 {[%emt 0:00:02]} Nbd7 {[%emt 0:00:05]} 8. Qe1 {[%emt 0:00:03]} dxe4 {[%emt 0:00:05]} 9. dxe4 {[%emt 0:00:02]} e5 {[%emt 0:00:02]} 10. Nc4 {[%emt 0:00:03]} Re8 {[%emt 0:00:13]} 11. Nxd6 {[%emt 0:00:03]} cxd6 {[%emt 0:00:03]} 12. b3 {[%emt 0:00:02]} Nc5 {[%emt 0:00:03]} 13. Nh4 {[%emt 0:00:10]} b6 {[%emt 0:00:09]} 14. b4 {[%emt 0:00:12]} Ne6 {[%emt 0:00:07]} 15. Bb2 {[%emt 0:00:05]} Ba6 {[%emt 0:00:03]} 16. f4 {[%emt 0:00:10]} Bxf1 {[%emt 0:00:03]} 17. Qxf1 {[%emt 0:00:05]} exf4 {[%emt 0:00:06]} 18. gxf4 {[%emt 0:00:04]} Nh5 {[%emt 0:00:02]} 19. Nf5 {[%emt 0:00:46]} Nexf4 {[%emt 0:00:04]} 20. Bf3 {[%emt 0:00:12]} Qg5+ {[%emt 0:00:06]} 21. Kh1 {[%emt 0:00:08]} g6 {[%emt 0:00:12]} 22. Bxh5 {[%emt 0:00:12]} gxf5 {[%emt 0:00:11]} 23. Qf2 {[%emt 0:00:20]} Nh3 {[%emt 0:00:11]} 24. Qf3 {[%emt 0:00:17]} Qh4 {[%emt 0:00:11]} 25. Qxf5 {[%emt 0:00:21]} Qxe4+ {[%emt 0:00:30]} 26. Qxe4 {[%emt 0:00:06]} Rxe4 {[%emt 0:00:04]} 27. Bf3 {[%emt 0:00:02]} Rxb4 {[%emt 0:00:02]} 28. Bc3 {[%emt 0:00:04]} Rc4 {[%emt 0:00:13]} 29. Bxa8 {[%emt 0:00:06]} Rxc3 {[%emt 0:00:02]} 30. Bg2 {[%emt 0:00:03]} Nf2+ {[%emt 0:00:05]} 31. Kg1 {[%emt 0:00:02]} Rxc2 {[%emt 0:00:02]} 32. Rf1 {[%emt 0:00:04]} Ng4 {[%emt 0:00:07]} 33. Bd5 {[%emt 0:00:03]} Ne5 {[%emt 0:00:04]} 34. h4 {[%emt 0:00:04]} Rc5 {[%emt 0:00:08]} 35. Bb3 {[%emt 0:00:05]} a5 {[%emt 0:00:03]} 36. Rd1 {[%emt 0:00:03]} Nc4 {[%emt 0:00:16]} 0-1

[Event "Queens Festival Europe 2022"]
[Site "Tornelo"]
[Date "2022.06.19"]
[Round "10.9"]
[White "Stewart-Bermann, Tanya"]
[Black "Gjergji, Rozana"]
[Result "0-1"]
[ECO "D02"]
[WhiteElo "1863"]
[BlackElo "1920"]
[Annotator "NA RC"]
[PlyCount "64"]
[EventDate "2022.06.19"]
[EventType "swiss"]
[EventCountry "NET"]
[SourceTitle "playchess.com"]
[Source "ChessBase"]
[SourceQuality "1"]
[TimeControl "180+2"]

1. d4 {[%emt 0:00:02]} d5 {[%emt 0:00:05]} 2. Bf4 {[%emt 0:00:02]} Nf6 {[%emt 0:00:02]} 3. e3 {[%emt 0:00:03]} c6 {[%emt 0:00:02]} 4. Nf3 {[%emt 0:00:02]} Bf5 {[%emt 0:00:01]} 5. Nbd2 {[%emt 0:00:04]} Nbd7 {[%emt 0:00:02]} 6. c3 {[%emt 0:00:03]} Ne4 {[%emt 0:00:02]} 7. Qb3 {[%emt 0:00:12]} b6 {[%emt 0:00:06]} 8. Be2 {[%emt 0:00:09]} f6 {[%emt 0:00:07]} 9. Bg3 {[%emt 0:00:04]} e6 {[%emt 0:00:09]} 10. O-O {[%emt 0:00:07]} Be7 {[%emt 0:00:05]} 11. Nxe4 {[%emt 0:00:02]} Bxe4 {[%emt 0:00:04]} 12. Nd2 {[%emt 0:00:02]} Bg6 {[%emt 0:00:04]} 13. f3 {[%emt 0:00:07]} O-O {[%emt 0:00:02]} 14. e4 {[%emt 0:00:03]} f5 {[%emt 0:00:15]} 15. exd5 {[%emt 0:00:36]} exd5 {[%emt 0:00:04]} 16. c4 {[%emt 0:00:01]} Nf6 {[%emt 0:00:09]} 17. Be5 {[%emt 0:00:05]} Kh8 {[%emt 0:00:15]} 18. f4 {[%emt 0:00:06]} Ne4 {[%emt 0:00:05]} 19. Nf3 {[%emt 0:00:12]} dxc4 {[%emt 0:00:23]} 20. Bxc4 {[%emt 0:00:06]} b5 {[%emt 0:00:04]} 21. Bd3 {[%emt 0:00:04]} Bf7 {[%emt 0:00:03]} 22. Qc2 {[%emt 0:00:06]} Bd5 {[%emt 0:00:08]} 23. Nd2 {[%emt 0:00:08]} Nd6 {[%emt 0:00:10]} 24. Bxf5 {[%emt 0:00:09]} Nxf5 {[%emt 0:00:05]} 25. Nf3 {[%emt 0:00:10]} Ne3 {[%emt 0:00:03]} 26. Qd2 {[%emt 0:00:03]} Nxf1 {[%emt 0:00:07]} 27. Rxf1 {[%emt 0:00:02]} Bxf3 {[%emt 0:00:05]} 28. Rxf3 {[%emt 0:00:03]} Bf6 {[%emt 0:00:04]} 29. Rh3 {[%emt 0:00:04]} Bxe5 {[%emt 0:00:04]} 30. fxe5 {[%emt 0:00:02]} Qd5 {[%emt 0:00:06]} 31. Qd3 {[%emt 0:00:07]} h6 {[%emt 0:00:06]} 32. Qg6 {[%emt 0:00:10]} Qxd4+ {[%emt 0:00:09]} 0-1

[Event "Queens Festival Europe 2022"]
[Site "Tornelo"]
[Date "2022.06.19"]
[Round "10.10"]
[White "Ostafiev, Cristina"]
[Black "Ismayilova, Salbinaz"]
[Result "0-1"]
[ECO "C28"]
[WhiteElo "1173"]
[BlackElo "1090"]
[Annotator "NA RC"]
[PlyCount "84"]
[EventDate "2022.06.19"]
[EventType "swiss"]
[EventCountry "NET"]
[SourceTitle "playchess.com"]
[Source "ChessBase"]
[SourceQuality "1"]
[TimeControl "180+2"]

1. e4 {[%emt 0:00:02]} e5 {[%emt 0:00:04]} 2. Nc3 {[%emt 0:00:03]} Nc6 {[%emt 0:00:03]} 3. Bc4 {[%emt 0:00:03]} Bc5 {[%emt 0:00:02]} 4. d3 {[%emt 0:00:03]} Nf6 {[%emt 0:00:05]} 5. Bg5 {[%emt 0:00:06]} d6 {[%emt 0:00:03]} 6. Nd5 {[%emt 0:00:04]} Be6 {[%emt 0:00:11]} 7. Nxf6+ {[%emt 0:00:07]} gxf6 {[%emt 0:00:04]} 8. Bh6 {[%emt 0:00:11]} Rg8 {[%emt 0:00:06]} 9. Bxe6 {[%emt 0:00:15]} fxe6 {[%emt 0:00:02]} 10. Qh5+ {[%emt 0:00:04]} Kd7 {[%emt 0:00:08]} 11. Qf7+ {[%emt 0:00:13]} Qe7 {[%emt 0:00:03]} 12. Qxe7+ {[%emt 0:00:15]} Kxe7 {[%emt 0:00:03]} 13. g3 {[%emt 0:00:05]} Nd4 {[%emt 0:00:03]} 14. O-O-O {[%emt 0:00:11]} Nc6 {[%emt 0:00:08]} 15. Ne2 {[%emt 0:00:18]} a5 {[%emt 0:00:03]} 16. Nc3 {[%emt 0:00:03]} a4 {[%emt 0:00:06]} 17. Nb5 {[%emt 0:00:09]} Kd7 {[%emt 0:00:02]} 18. f4 {[%emt 0:00:18]} a3 {[%emt 0:00:09]} 19. b3 {[%emt 0:00:16]} Bb4 {[%emt 0:00:17]} 20. fxe5 {[%emt 0:00:15]} fxe5 {[%emt 0:00:05]} 21. d4 {[%emt 0:00:09]} Ra5 {[%emt 0:00:13]} 22. c4 {[%emt 0:00:11]} exd4 {[%emt 0:00:11]} 23. Nxd4 {[%emt 0:00:18]} Nxd4 {[%emt 0:00:04]} 24. Rxd4 {[%emt 0:00:01]} Rg6 {[%emt 0:00:04]} 25. Bf4 {[%emt 0:00:03]} Ke7 {[%emt 0:00:08]} 26. Re1 {[%emt 0:00:06]} e5 {[%emt 0:00:02]} 27. Bxe5 {[%emt 0:00:03]} dxe5 {[%emt 0:00:02]} 28. Rdd1 {[%emt 0:00:04]} Bxe1 {[%emt 0:00:03]} 29. Rxe1 {[%emt 0:00:01]} Rh6 {[%emt 0:00:02]} 30. Rd1 {[%emt 0:00:01]} Rxh2 {[%emt 0:00:03]} 31. Re1 {[%emt 0:00:02]} Rxa2 {[%emt 0:00:02]} 32. Rg1 {[%emt 0:00:02]} Ra1+ {[%emt 0:00:02]} 33. Kc2 {[%emt 0:00:02]} Rxg1 {[%emt 0:00:02]} 34. b4 {[%emt 0:00:03]} a2 {[%emt 0:00:03]} 35. bxa5 {[%emt 0:00:03]} a1=Q {[%emt 0:00:03]} 36. c5 {[%emt 0:00:02]} Qxa5 {[%emt 0:00:02]} 37. c6 {[%emt 0:00:01]} Qc5+ {[%emt 0:00:02]} 38. Kd2 {[%emt 0:00:03]} Qc1+ {[%emt 0:00:02]} 39. Kd3 {[%emt 0:00:02]} Rxg3+ {[%emt 0:00:03]} 40. Ke2 {[%emt 0:00:01]} Qc2+ {[%emt 0:00:03]} 41. Kf1 {[%emt 0:00:02]} Rg2 {[%emt 0:00:12]} 42. cxb7 {[%emt 0:00:03]} Qe2# {[%emt 0:00:04]} 0-1